[Event "Titled Tuesday Blitz July 11 Early 2023"]
[White "Yurasova, Daria"]
[Black "Manukyan, Artyom"]
[WhiteFideId "34146919"]
[BlackFideId "13305786"]
[WhiteElo "2435"]
[BlackElo "2572"]
[Result "1-0"]
[Round "8"]
[TimeControl "180+2"]
[Date "2023.07.11"]
[WhiteClock "0:00:07"]
[BlackClock "0:00:00"]
[Board "101"]

1. d4 {[%clk 0:02:59]}  e6 {[%clk 0:02:57]} 2. Nf3 {[%clk 0:02:59]}  f5 {[%clk 0:02:57]} 3. c4 {[%clk 0:02:58]}  Nf6 {[%clk 0:02:57]} 4. Nc3 {[%clk 0:02:58]}  Bb4 {[%clk 0:02:57]} 5. Qc2 {[%clk 0:02:55]}  Bxc3+ {[%clk 0:02:58]} 6. bxc3 {[%clk 0:02:55]}  b6 {[%clk 0:02:58]} 7. g3 {[%clk 0:02:54]}  Bb7 {[%clk 0:02:59]} 8. Bg2 {[%clk 0:02:54]}  O-O {[%clk 0:02:59]} 9. O-O {[%clk 0:02:55]}  Be4 {[%clk 0:02:52]} 10. Qd1 {[%clk 0:02:53]}  Qe7 {[%clk 0:02:51]} 11. a4 {[%clk 0:02:54]}  a5 {[%clk 0:02:48]} 12. Ba3 {[%clk 0:02:52]}  d6 {[%clk 0:02:48]} 13. c5 {[%clk 0:02:48]}  Na6 {[%clk 0:02:39]} 14. cxd6 {[%clk 0:02:48]}  cxd6 {[%clk 0:02:40]} 15. Qb3 {[%clk 0:02:46]}  Rab8 {[%clk 0:02:37]} 16. Ng5 {[%clk 0:02:44]}  Bxg2 {[%clk 0:02:34]} 17. Kxg2 {[%clk 0:02:45]}  Rfe8 {[%clk 0:02:34]} 18. Qc4 {[%clk 0:02:41]}  h6 {[%clk 0:02:29]} 19. Nxe6 {[%clk 0:02:25]}  Qxe6 {[%clk 0:02:25]} 20. Qxa6 {[%clk 0:02:25]}  Qe4+ {[%clk 0:02:12]} 21. Kg1 {[%clk 0:02:25]}  d5 {[%clk 0:02:08]} 22. Bd6 {[%clk 0:01:50]}  Rbd8 {[%clk 0:02:02]} 23. Be5 {[%clk 0:01:49]}  Ng4 {[%clk 0:02:00]} 24. Qxb6 {[%clk 0:01:37]}  Qxe2 {[%clk 0:01:37]} 25. Rae1 {[%clk 0:01:18]}  Qf3 {[%clk 0:01:36]} 26. Qc7 {[%clk 0:01:07]}  Nxe5 {[%clk 0:01:30]} 27. Rxe5 {[%clk 0:01:06]}  Rf8 {[%clk 0:01:29]} 28. Re7 {[%clk 0:01:02]}  Qg4 {[%clk 0:01:29]} 29. Rb1 {[%clk 0:00:52]}  Rde8 {[%clk 0:00:35]} 30. Rb7 {[%clk 0:00:47]}  Rxe7 {[%clk 0:00:33]} 31. Qxe7 {[%clk 0:00:48]}  f4 {[%clk 0:00:31]} 32. f3 {[%clk 0:00:27]}  Qg6 {[%clk 0:00:26]} 33. g4 {[%clk 0:00:26]}  Re8 {[%clk 0:00:23]} 34. Qd7 {[%clk 0:00:15]}  Re1+ {[%clk 0:00:15]} 35. Kf2 {[%clk 0:00:16]}  Re3 {[%clk 0:00:15]} 36. Qf5 {[%clk 0:00:12]}  Qxf5 {[%clk 0:00:07]} 37. gxf5 {[%clk 0:00:13]}  Rxc3 {[%clk 0:00:08]} 38. Rb5 {[%clk 0:00:13]}  Rc4 {[%clk 0:00:08]} 39. Rxa5 {[%clk 0:00:11]}  Rxd4 {[%clk 0:00:08]} 40. Ra7 {[%clk 0:00:12]}  Rb4 {[%clk 0:00:06]} 41. Ke2 {[%clk 0:00:12]}  Rb3 {[%clk 0:00:04]} 42. a5 {[%clk 0:00:11]}  Ra3 {[%clk 0:00:05]} 43. a6 {[%clk 0:00:11]}  h5 {[%clk 0:00:05]} 44. h4 {[%clk 0:00:10]}  Kh8 {[%clk 0:00:04]} 45. Ra8+ {[%clk 0:00:07]}  Kh7 {[%clk 0:00:04]} 46. a7 {[%clk 0:00:08]}  d4 {[%clk 0:00:02]} 47. Kd2 {[%clk 0:00:08]}  Ra1 {[%clk 0:00:01]} 48. Kd3 {[%clk 0:00:08]}  Ra4 {[%clk 0:00:02]} 49. Ke4 {[%clk 0:00:08]}  Ra5 {[%clk 0:00:02]} 50. Kxd4 {[%clk 0:00:08]}  Ra3 {[%clk 0:00:02]} 51. Ke4 {[%clk 0:00:08]}  Ra4+ {[%clk 0:00:03]} 52. Ke5 {[%clk 0:00:08]}  g6 {[%clk 0:00:02]} 53. f6 {[%clk 0:00:07]}  Ra5+ {[%clk 0:00:00]} 54. Ke4 {[%clk 0:00:07]} 1-0


[Site "https://www.chess.com"]

[Event "Titled Tuesday Blitz July 11 Early 2023"]
[White "Kim, Sergey"]
[Black "Ncatt"]
[WhiteFideId "13700570"]
[WhiteElo "2569"]
[BlackElo "2389"]
[Result "1/2-1/2"]
[Round "8"]
[TimeControl "180+2"]
[Date "2023.07.11"]
[WhiteClock "0:00:09"]
[BlackClock "0:00:21"]
[Board "103"]

1. d4 {[%clk 0:03:00]}  d5 {[%clk 0:02:59]} 2. c4 {[%clk 0:03:01]}  c6 {[%clk 0:02:59]} 3. Nf3 {[%clk 0:03:00]}  Nf6 {[%clk 0:03:00]} 4. Qc2 {[%clk 0:03:00]}  dxc4 {[%clk 0:02:59]} 5. Qxc4 {[%clk 0:03:00]}  Bf5 {[%clk 0:02:59]} 6. e3 {[%clk 0:02:59]}  e6 {[%clk 0:02:59]} 7. Bd3 {[%clk 0:02:59]}  Bxd3 {[%clk 0:02:57]} 8. Qxd3 {[%clk 0:03:00]}  Nbd7 {[%clk 0:02:58]} 9. O-O {[%clk 0:03:00]}  Be7 {[%clk 0:02:57]} 10. Nc3 {[%clk 0:03:00]}  O-O {[%clk 0:02:58]} 11. e4 {[%clk 0:03:00]}  Qb6 {[%clk 0:02:55]} 12. Bg5 {[%clk 0:02:57]}  h6 {[%clk 0:02:54]} 13. Bh4 {[%clk 0:02:55]}  Rfe8 {[%clk 0:02:54]} 14. Rab1 {[%clk 0:02:48]}  Rad8 {[%clk 0:02:51]} 15. Qe2 {[%clk 0:02:41]}  Qa5 {[%clk 0:02:45]} 16. a3 {[%clk 0:02:37]}  Qh5 {[%clk 0:02:42]} 17. Bg3 {[%clk 0:02:25]}  Nb6 {[%clk 0:02:38]} 18. Rfd1 {[%clk 0:02:21]}  Qg6 {[%clk 0:02:24]} 19. Bc7 {[%clk 0:02:14]}  Rc8 {[%clk 0:02:23]} 20. Bg3 {[%clk 0:02:07]}  Nh5 {[%clk 0:02:17]} 21. Ne5 {[%clk 0:02:03]}  Nxg3 {[%clk 0:02:17]} 22. hxg3 {[%clk 0:02:03]}  Qg5 {[%clk 0:02:14]} 23. Rd3 {[%clk 0:01:57]}  Rcd8 {[%clk 0:02:03]} 24. f4 {[%clk 0:01:57]}  Qf6 {[%clk 0:02:03]} 25. Rbd1 {[%clk 0:01:54]}  c5 {[%clk 0:01:53]} 26. dxc5 {[%clk 0:01:42]}  Bxc5+ {[%clk 0:01:52]} 27. Kh2 {[%clk 0:01:42]}  Rxd3 {[%clk 0:01:39]} 28. Qxd3 {[%clk 0:01:42]}  Qe7 {[%clk 0:01:31]} 29. b4 {[%clk 0:01:38]}  Bf2 {[%clk 0:01:31]} 30. Qe2 {[%clk 0:01:32]}  Rc8 {[%clk 0:01:16]} 31. Rd3 {[%clk 0:01:29]}  Bd4 {[%clk 0:01:15]} 32. Rxd4 {[%clk 0:01:28]}  Rxc3 {[%clk 0:01:15]} 33. a4 {[%clk 0:01:25]}  f6 {[%clk 0:00:51]} 34. Nf3 {[%clk 0:01:12]}  Nxa4 {[%clk 0:00:48]} 35. Qd2 {[%clk 0:01:12]}  Rc7 {[%clk 0:00:44]} 36. e5 {[%clk 0:01:01]}  f5 {[%clk 0:00:39]} 37. Rd6 {[%clk 0:00:57]}  Nc3 {[%clk 0:00:38]} 38. Qd4 {[%clk 0:00:50]}  Nb5 {[%clk 0:00:22]} 39. Rd8+ {[%clk 0:00:47]}  Kh7 {[%clk 0:00:23]} 40. Qd2 {[%clk 0:00:46]}  a6 {[%clk 0:00:22]} 41. Nh4 {[%clk 0:00:37]}  Rc4 {[%clk 0:00:20]} 42. Rd7 {[%clk 0:00:33]}  Qxb4 {[%clk 0:00:20]} 43. Qxb4 {[%clk 0:00:32]}  Rxb4 {[%clk 0:00:21]} 44. Rxb7 {[%clk 0:00:32]}  a5 {[%clk 0:00:20]} 45. Rb8 {[%clk 0:00:29]}  a4 {[%clk 0:00:20]} 46. Ra8 {[%clk 0:00:30]}  a3 {[%clk 0:00:20]} 47. Nf3 {[%clk 0:00:30]}  Rb2 {[%clk 0:00:20]} 48. Kh3 {[%clk 0:00:27]}  a2 {[%clk 0:00:21]} 49. g4 {[%clk 0:00:27]}  Nc3 {[%clk 0:00:21]} 50. gxf5 {[%clk 0:00:25]}  exf5 {[%clk 0:00:21]} 51. e6 {[%clk 0:00:25]}  Re2 {[%clk 0:00:22]} 52. Ne5 {[%clk 0:00:25]}  Nd5 {[%clk 0:00:21]} 53. g3 {[%clk 0:00:20]}  g5 {[%clk 0:00:20]} 54. Ra7+ {[%clk 0:00:19]}  Kg8 {[%clk 0:00:20]} 55. Ra8+ {[%clk 0:00:19]}  Kg7 {[%clk 0:00:20]} 56. Ra7+ {[%clk 0:00:19]}  Kf6 {[%clk 0:00:20]} 57. e7 {[%clk 0:00:18]}  Nxe7 {[%clk 0:00:20]} 58. Nd7+ {[%clk 0:00:18]}  Ke6 {[%clk 0:00:19]} 59. Nc5+ {[%clk 0:00:18]}  Kd6 {[%clk 0:00:20]} 60. fxg5 {[%clk 0:00:18]}  hxg5 {[%clk 0:00:20]} 61. Nb3 {[%clk 0:00:17]}  Rb2 {[%clk 0:00:19]} 62. Nd4 {[%clk 0:00:17]}  Nc6 {[%clk 0:00:19]} 63. Ra6 {[%clk 0:00:16]}  Kc5 {[%clk 0:00:19]} 64. Nxc6 {[%clk 0:00:16]}  Kb5 {[%clk 0:00:20]} 65. Nb8 {[%clk 0:00:15]}  Kc5 {[%clk 0:00:20]} 66. Ra5+ {[%clk 0:00:15]}  Kb6 {[%clk 0:00:19]} 67. Ra3 {[%clk 0:00:15]}  Kc7 {[%clk 0:00:17]} 68. Na6+ {[%clk 0:00:15]}  Kb6 {[%clk 0:00:18]} 69. Nb8 {[%clk 0:00:15]}  Rd2 {[%clk 0:00:18]} 70. g4 {[%clk 0:00:14]}  f4 {[%clk 0:00:18]} 71. Ra4 {[%clk 0:00:13]}  Kb7 {[%clk 0:00:19]} 72. Na6 {[%clk 0:00:13]}  Rd3+ {[%clk 0:00:18]} 73. Kh2 {[%clk 0:00:12]}  Rd2+ {[%clk 0:00:19]} 74. Kh3 {[%clk 0:00:12]}  Kb6 {[%clk 0:00:19]} 75. Nb4 {[%clk 0:00:12]}  Kb5 {[%clk 0:00:20]} 76. Rxa2 {[%clk 0:00:11]}  Rd4 {[%clk 0:00:19]} 77. Nc2 {[%clk 0:00:10]}  Rd3+ {[%clk 0:00:19]} 78. Kh2 {[%clk 0:00:10]}  Rg3 {[%clk 0:00:19]} 79. Nd4+ {[%clk 0:00:09]}  Kc5 {[%clk 0:00:20]} 80. Ne6+ {[%clk 0:00:09]}  Kd5 {[%clk 0:00:20]} 81. Nxg5 {[%clk 0:00:10]}  Rxg4 {[%clk 0:00:21]} 82. Nh3 {[%clk 0:00:10]}  f3 {[%clk 0:00:20]} 83. Rf2 {[%clk 0:00:09]}  Ke4 {[%clk 0:00:20]} 84. Ng1 {[%clk 0:00:08]}  Rg2+ {[%clk 0:00:20]} 85. Rxg2 {[%clk 0:00:08]}  fxg2 {[%clk 0:00:21]} 86. Kxg2 {[%clk 0:00:09]} 1/2-1/2


[Site "https://www.chess.com"]

[Event "Titled Tuesday Blitz July 11 Early 2023"]
[White "Palczert, Matyas"]
[Black "Todorovic, Bojan"]
[WhiteFideId "784958"]
[BlackFideId "917087"]
[WhiteElo "2564"]
[BlackElo "2336"]
[Result "0-1"]
[Round "8"]
[TimeControl "180+2"]
[Date "2023.07.11"]
[WhiteClock "0:02:08"]
[BlackClock "0:01:25"]
[Board "104"]

1. e4 {[%clk 0:03:00]}  g6 {[%clk 0:02:59]} 2. d4 {[%clk 0:02:55]}  Bg7 {[%clk 0:02:59]} 3. Nf3 {[%clk 0:02:54]}  d6 {[%clk 0:02:59]} 4. Nc3 {[%clk 0:02:51]}  a6 {[%clk 0:02:59]} 5. a4 {[%clk 0:02:48]}  Nc6 {[%clk 0:02:49]} 6. Be2 {[%clk 0:02:43]}  Nf6 {[%clk 0:02:46]} 7. O-O {[%clk 0:02:43]}  O-O {[%clk 0:02:45]} 8. d5 {[%clk 0:02:43]}  Nb8 {[%clk 0:02:43]} 9. h3 {[%clk 0:02:41]}  c6 {[%clk 0:02:35]} 10. a5 {[%clk 0:02:40]}  Nbd7 {[%clk 0:02:33]} 11. Be3 {[%clk 0:02:39]}  cxd5 {[%clk 0:02:30]} 12. exd5 {[%clk 0:02:37]}  b5 {[%clk 0:02:25]} 13. axb6 {[%clk 0:02:36]}  Nxb6 {[%clk 0:02:25]} 14. Nd4 {[%clk 0:02:32]}  Nfxd5 {[%clk 0:02:01]} 15. Nxd5 {[%clk 0:02:31]}  Nxd5 {[%clk 0:02:01]} 16. Nc6 {[%clk 0:02:31]}  Nxe3 {[%clk 0:02:02]} 17. fxe3 {[%clk 0:02:21]}  Qc7 {[%clk 0:02:00]} 18. Bf3 {[%clk 0:02:17]}  Bb7 {[%clk 0:01:58]} 19. Qd5 {[%clk 0:02:14]}  e6 {[%clk 0:01:24]} 20. Ne7+ {[%clk 0:02:13]}  Qxe7 {[%clk 0:01:25]} 21. Qxb7 {[%clk 0:02:13]}  Qxb7 {[%clk 0:01:25]} 22. Bxb7 {[%clk 0:02:13]}  Ra7 {[%clk 0:01:25]} 23. Bxa6 {[%clk 0:02:08]}  Rfa8 {[%clk 0:01:25]} 0-1


[Site "https://www.chess.com"]

[Event "Titled Tuesday Blitz July 11 Early 2023"]
[White "Ishowmoves57"]
[Black "AyMitecK"]
[WhiteElo "2160"]
[BlackElo "2551"]
[Result "1-0"]
[Round "8"]
[TimeControl "180+2"]
[Date "2023.07.11"]
[WhiteClock "0:00:54"]
[BlackClock "0:01:01"]
[Board "106"]

1. e4 {[%clk 0:02:59]}  e6 {[%clk 0:03:00]} 2. d4 {[%clk 0:02:57]}  d5 {[%clk 0:03:01]} 3. Bd3 {[%clk 0:02:58]}  dxe4 {[%clk 0:03:01]} 4. Bxe4 {[%clk 0:02:58]}  Nf6 {[%clk 0:03:01]} 5. Bf3 {[%clk 0:02:59]}  Bd6 {[%clk 0:03:02]} 6. Ne2 {[%clk 0:02:58]}  Nbd7 {[%clk 0:03:02]} 7. O-O {[%clk 0:02:59]}  O-O {[%clk 0:03:03]} 8. c3 {[%clk 0:02:58]}  e5 {[%clk 0:03:03]} 9. dxe5 {[%clk 0:02:55]}  Nxe5 {[%clk 0:03:03]} 10. Nd4 {[%clk 0:02:54]}  c5 {[%clk 0:03:00]} 11. Nb5 {[%clk 0:02:51]}  Nxf3+ {[%clk 0:03:00]} 12. Qxf3 {[%clk 0:02:50]}  Be7 {[%clk 0:02:59]} 13. Bf4 {[%clk 0:02:47]}  Qd5 {[%clk 0:02:47]} 14. Nc7 {[%clk 0:02:37]}  Qxf3 {[%clk 0:02:37]} 15. gxf3 {[%clk 0:02:38]}  Rb8 {[%clk 0:02:35]} 16. Na6 {[%clk 0:02:32]}  Ra8 {[%clk 0:02:31]} 17. Nc7 {[%clk 0:02:32]}  Bh3 {[%clk 0:02:30]} 18. Re1 {[%clk 0:02:25]}  Nh5 {[%clk 0:02:22]} 19. Nxa8 {[%clk 0:02:14]}  Nxf4 {[%clk 0:02:20]} 20. Rxe7 {[%clk 0:02:10]}  Rxa8 {[%clk 0:02:20]} 21. Nd2 {[%clk 0:02:08]}  Rd8 {[%clk 0:02:17]} 22. Rae1 {[%clk 0:02:04]}  Be6 {[%clk 0:02:09]} 23. Ne4 {[%clk 0:01:56]}  b6 {[%clk 0:02:06]} 24. Ng5 {[%clk 0:01:52]}  a5 {[%clk 0:01:54]} 25. Nxe6 {[%clk 0:01:51]}  Nxe6 {[%clk 0:01:55]} 26. Rb7 {[%clk 0:01:47]}  Ng5 {[%clk 0:01:50]} 27. Kg2 {[%clk 0:01:39]}  h5 {[%clk 0:01:49]} 28. Ree7 {[%clk 0:01:32]}  Rd6 {[%clk 0:01:41]} 29. h4 {[%clk 0:01:30]}  Ne6 {[%clk 0:01:36]} 30. Rxf7 {[%clk 0:01:30]}  c4 {[%clk 0:01:35]} 31. Rfd7 {[%clk 0:01:24]}  Rc6 {[%clk 0:01:33]} 32. Kg3 {[%clk 0:01:18]}  Kh8 {[%clk 0:01:28]} 33. Ra7 {[%clk 0:01:12]}  Rc5 {[%clk 0:01:22]} 34. Re7 {[%clk 0:01:06]}  Re5 {[%clk 0:01:19]} 35. Rab7 {[%clk 0:01:03]}  g5 {[%clk 0:01:12]} 36. Rxb6 {[%clk 0:00:55]}  gxh4+ {[%clk 0:01:09]} 37. Kh2 {[%clk 0:00:55]}  Re2 {[%clk 0:01:02]} 38. Rb8+ {[%clk 0:00:54]}  Nd8 {[%clk 0:01:01]} 39. Rxd8# {[%clk 0:00:54]} 1-0


[Site "https://www.chess.com"]

[Event "Titled Tuesday Blitz July 11 Early 2023"]
[White "Bobkov, Vadim"]
[Black "Lopez Gracia, Fernando"]
[WhiteFideId "34110876"]
[BlackFideId "2207184"]
[WhiteElo "2615"]
[BlackElo "2417"]
[Result "0-1"]
[Round "8"]
[TimeControl "180+2"]
[Date "2023.07.11"]
[WhiteClock "0:00:00"]
[BlackClock "0:00:18"]
[Board "108"]

1. d4 {[%clk 0:03:00]}  Nf6 {[%clk 0:02:57]} 2. c4 {[%clk 0:02:58]}  c5 {[%clk 0:02:56]} 3. d5 {[%clk 0:02:53]}  e6 {[%clk 0:02:56]} 4. Nc3 {[%clk 0:02:51]}  d6 {[%clk 0:02:56]} 5. e4 {[%clk 0:02:39]}  g6 {[%clk 0:02:55]} 6. Nf3 {[%clk 0:02:28]}  Bg7 {[%clk 0:02:56]} 7. Bg5 {[%clk 0:02:27]}  O-O {[%clk 0:02:53]} 8. Be2 {[%clk 0:02:17]}  h6 {[%clk 0:02:50]} 9. Bh4 {[%clk 0:02:08]}  exd5 {[%clk 0:02:50]} 10. exd5 {[%clk 0:02:02]}  Bg4 {[%clk 0:02:49]} 11. O-O {[%clk 0:02:00]}  Nbd7 {[%clk 0:02:47]} 12. h3 {[%clk 0:01:57]}  Bxf3 {[%clk 0:02:47]} 13. Bxf3 {[%clk 0:01:58]}  Ne5 {[%clk 0:02:47]} 14. Be2 {[%clk 0:01:57]}  g5 {[%clk 0:02:46]} 15. Bg3 {[%clk 0:01:56]}  Re8 {[%clk 0:02:46]} 16. Qd2 {[%clk 0:01:35]}  Ng6 {[%clk 0:02:19]} 17. Bd3 {[%clk 0:01:21]}  Qd7 {[%clk 0:02:09]} 18. Bxg6 {[%clk 0:00:58]}  fxg6 {[%clk 0:02:10]} 19. Rae1 {[%clk 0:00:55]}  Nh5 {[%clk 0:02:01]} 20. Bh2 {[%clk 0:00:48]}  Kh7 {[%clk 0:01:31]} 21. Rxe8 {[%clk 0:00:43]}  Rxe8 {[%clk 0:01:30]} 22. Re1 {[%clk 0:00:44]}  Rxe1+ {[%clk 0:01:27]} 23. Qxe1 {[%clk 0:00:45]}  Nf4 {[%clk 0:01:28]} 24. Bxf4 {[%clk 0:00:34]}  gxf4 {[%clk 0:01:29]} 25. Qe6 {[%clk 0:00:32]}  Qd8 {[%clk 0:01:15]} 26. Nb5 {[%clk 0:00:22]}  f3 {[%clk 0:01:05]} 27. Nxd6 {[%clk 0:00:14]}  Qg5 {[%clk 0:01:04]} 28. g4 {[%clk 0:00:13]}  Qc1+ {[%clk 0:00:22]} 29. Kh2 {[%clk 0:00:13]}  Qxb2 {[%clk 0:00:21]} 30. Ne4 {[%clk 0:00:00]}  Be5+ {[%clk 0:00:18]} 0-1


[Site "https://www.chess.com"]

[Event "Titled Tuesday Blitz July 11 Early 2023"]
[White "Szyszylo, Rafal"]
[Black "Thecourseoisildur"]
[WhiteFideId "1109626"]
[WhiteElo "2400"]
[BlackElo "2548"]
[Result "1-0"]
[Round "8"]
[TimeControl "180+2"]
[Date "2023.07.11"]
[WhiteClock "0:00:03"]
[BlackClock "0:00:00"]
[Board "113"]

1. e4 {[%clk 0:03:00]}  c5 {[%clk 0:02:54]} 2. Nc3 {[%clk 0:02:59]}  Nc6 {[%clk 0:02:52]} 3. Bb5 {[%clk 0:02:59]}  Nd4 {[%clk 0:02:51]} 4. Nf3 {[%clk 0:03:00]}  Nxb5 {[%clk 0:02:49]} 5. Nxb5 {[%clk 0:02:59]}  d5 {[%clk 0:02:49]} 6. exd5 {[%clk 0:02:59]}  a6 {[%clk 0:02:49]} 7. Nc3 {[%clk 0:02:58]}  Nf6 {[%clk 0:02:49]} 8. d4 {[%clk 0:02:56]}  Nxd5 {[%clk 0:02:47]} 9. Ne4 {[%clk 0:02:55]}  cxd4 {[%clk 0:02:43]} 10. Qxd4 {[%clk 0:02:54]}  e6 {[%clk 0:02:28]} 11. O-O {[%clk 0:02:23]}  Qb6 {[%clk 0:02:14]} 12. c4 {[%clk 0:01:59]}  Qxd4 {[%clk 0:02:10]} 13. Nxd4 {[%clk 0:02:00]}  Nf6 {[%clk 0:02:11]} 14. Nxf6+ {[%clk 0:01:48]}  gxf6 {[%clk 0:02:11]} 15. Be3 {[%clk 0:01:42]}  f5 {[%clk 0:02:02]} 16. Rfe1 {[%clk 0:01:36]}  Bg7 {[%clk 0:01:39]} 17. Rad1 {[%clk 0:01:07]}  Rg8 {[%clk 0:01:31]} 18. g3 {[%clk 0:00:47]}  Bd7 {[%clk 0:01:28]} 19. b3 {[%clk 0:00:46]}  O-O-O {[%clk 0:01:25]} 20. Rd2 {[%clk 0:00:44]}  Bc6 {[%clk 0:00:54]} 21. f4 {[%clk 0:00:43]}  Be4 {[%clk 0:00:48]} 22. Kf2 {[%clk 0:00:42]}  Bf8 {[%clk 0:00:47]} 23. Nf3 {[%clk 0:00:35]}  Bb4 {[%clk 0:00:44]} 24. Rxd8+ {[%clk 0:00:35]}  Rxd8 {[%clk 0:00:45]} 25. Rc1 {[%clk 0:00:26]}  Ba3 {[%clk 0:00:21]} 26. Re1 {[%clk 0:00:23]}  Bb2 {[%clk 0:00:19]} 27. Ng5 {[%clk 0:00:21]}  Rf8 {[%clk 0:00:13]} 28. Nxe4 {[%clk 0:00:17]}  fxe4 {[%clk 0:00:12]} 29. Bc5 {[%clk 0:00:18]}  Rd8 {[%clk 0:00:12]} 30. Rxe4 {[%clk 0:00:18]}  Rd1 {[%clk 0:00:12]} 31. Re2 {[%clk 0:00:18]}  Bc3 {[%clk 0:00:11]} 32. Kf3 {[%clk 0:00:17]}  Rf1+ {[%clk 0:00:08]} 33. Kg4 {[%clk 0:00:15]}  Kd7 {[%clk 0:00:05]} 34. Kg5 {[%clk 0:00:15]}  Kc6 {[%clk 0:00:05]} 35. Be7 {[%clk 0:00:15]}  Bg7 {[%clk 0:00:05]} 36. Rd2 {[%clk 0:00:09]}  h6+ {[%clk 0:00:05]} 37. Kg4 {[%clk 0:00:08]}  Rh1 {[%clk 0:00:03]} 38. b4 {[%clk 0:00:06]}  Bc3 {[%clk 0:00:02]} 39. Rd6+ {[%clk 0:00:05]}  Kc7 {[%clk 0:00:02]} 40. c5 {[%clk 0:00:03]}  Rxh2 {[%clk 0:00:01]} 41. Bd8+ {[%clk 0:00:04]}  Kc8 {[%clk 0:00:02]} 42. Bb6 {[%clk 0:00:04]}  f5+ {[%clk 0:00:01]} 43. Kf3 {[%clk 0:00:04]}  Bf6 {[%clk 0:00:00]} 44. Rxe6 {[%clk 0:00:03]} 1-0


[Site "https://www.chess.com"]

[Event "Titled Tuesday Blitz July 11 Early 2023"]
[White "Demin, Vladimir"]
[Black "Llanos, Guillermo"]
[WhiteFideId "4167457"]
[BlackFideId "100358"]
[WhiteElo "2526"]
[BlackElo "2394"]
[Result "1-0"]
[Round "8"]
[TimeControl "180+2"]
[Date "2023.07.11"]
[WhiteClock "0:01:06"]
[BlackClock "0:00:25"]
[Board "116"]

1. d4 {[%clk 0:03:00]}  Nf6 {[%clk 0:02:57]} 2. Nc3 {[%clk 0:03:00]}  d6 {[%clk 0:02:56]} 3. e4 {[%clk 0:03:00]}  e5 {[%clk 0:02:55]} 4. Nf3 {[%clk 0:02:59]}  Nbd7 {[%clk 0:02:54]} 5. Bc4 {[%clk 0:03:00]}  Be7 {[%clk 0:02:54]} 6. O-O {[%clk 0:03:00]}  O-O {[%clk 0:02:53]} 7. a4 {[%clk 0:03:00]}  a6 {[%clk 0:02:52]} 8. h3 {[%clk 0:03:01]}  b6 {[%clk 0:02:51]} 9. Re1 {[%clk 0:02:55]}  Bb7 {[%clk 0:02:51]} 10. Qd3 {[%clk 0:02:43]}  exd4 {[%clk 0:02:47]} 11. Qxd4 {[%clk 0:02:42]}  Ne5 {[%clk 0:02:16]} 12. Nxe5 {[%clk 0:02:30]}  dxe5 {[%clk 0:02:04]} 13. Qxe5 {[%clk 0:02:29]}  Re8 {[%clk 0:01:50]} 14. Qf4 {[%clk 0:01:50]}  Qd4 {[%clk 0:01:47]} 15. e5 {[%clk 0:01:41]}  Qxf4 {[%clk 0:01:43]} 16. Bxf4 {[%clk 0:01:42]}  Nh5 {[%clk 0:01:30]} 17. e6 {[%clk 0:01:42]}  f5 {[%clk 0:01:24]} 18. Be5 {[%clk 0:01:27]}  g6 {[%clk 0:01:13]} 19. Rad1 {[%clk 0:01:25]}  Bc6 {[%clk 0:01:08]} 20. Nd5 {[%clk 0:01:11]}  b5 {[%clk 0:01:03]} 21. Ba2 {[%clk 0:01:10]}  Bxd5 {[%clk 0:00:39]} 22. Bxd5 {[%clk 0:01:09]}  Rac8 {[%clk 0:00:25]} 23. Bc6 {[%clk 0:01:06]} 1-0


[Site "https://www.chess.com"]

[Event "Titled Tuesday Blitz July 11 Early 2023"]
[White "MAHanif"]
[Black "Malyi, Viacheslav"]
[BlackFideId "14123983"]
[WhiteElo "2387"]
[BlackElo "2522"]
[Result "0-1"]
[Round "8"]
[TimeControl "180+2"]
[Date "2023.07.11"]
[WhiteClock "0:00:01"]
[BlackClock "0:00:32"]
[Board "117"]

1. d4 {[%clk 0:02:53]}  Nf6 {[%clk 0:02:36]} 2. Nf3 {[%clk 0:02:54]}  g6 {[%clk 0:02:35]} 3. g3 {[%clk 0:02:55]}  d6 {[%clk 0:02:36]} 4. Bg2 {[%clk 0:02:56]}  Bg7 {[%clk 0:02:37]} 5. O-O {[%clk 0:02:56]}  O-O {[%clk 0:02:38]} 6. c3 {[%clk 0:02:56]}  c6 {[%clk 0:02:37]} 7. Nbd2 {[%clk 0:02:57]}  Qa5 {[%clk 0:02:37]} 8. Re1 {[%clk 0:02:57]}  Qh5 {[%clk 0:02:38]} 9. Qb3 {[%clk 0:02:55]}  Nbd7 {[%clk 0:02:33]} 10. e4 {[%clk 0:02:54]}  e5 {[%clk 0:02:30]} 11. Nc4 {[%clk 0:02:52]}  exd4 {[%clk 0:02:29]} 12. cxd4 {[%clk 0:02:44]}  d5 {[%clk 0:02:25]} 13. Nd6 {[%clk 0:02:30]}  Nxe4 {[%clk 0:02:21]} 14. Nxc8 {[%clk 0:02:20]}  Raxc8 {[%clk 0:02:15]} 15. Qxb7 {[%clk 0:02:20]}  Ndf6 {[%clk 0:02:10]} 16. Qxa7 {[%clk 0:02:02]}  Ng4 {[%clk 0:02:05]} 17. Be3 {[%clk 0:02:00]}  Nxe3 {[%clk 0:01:50]} 18. fxe3 {[%clk 0:01:47]}  c5 {[%clk 0:01:45]} 19. Qd7 {[%clk 0:01:39]}  Rfd8 {[%clk 0:01:37]} 20. Qh3 {[%clk 0:01:38]}  Qxh3 {[%clk 0:01:17]} 21. Bxh3 {[%clk 0:01:36]}  f5 {[%clk 0:01:18]} 22. Rac1 {[%clk 0:01:28]}  c4 {[%clk 0:01:13]} 23. Rc2 {[%clk 0:01:26]}  Ra8 {[%clk 0:01:12]} 24. a3 {[%clk 0:01:25]}  Rdb8 {[%clk 0:01:13]} 25. Ne5 {[%clk 0:01:21]}  Bxe5 {[%clk 0:01:07]} 26. dxe5 {[%clk 0:01:21]}  Kf7 {[%clk 0:01:08]} 27. Bg2 {[%clk 0:01:21]}  Ke6 {[%clk 0:01:08]} 28. Bxe4 {[%clk 0:01:12]}  fxe4 {[%clk 0:01:09]} 29. Rd1 {[%clk 0:01:10]}  Kxe5 {[%clk 0:01:06]} 30. Rcd2 {[%clk 0:01:09]}  Ra5 {[%clk 0:01:06]} 31. Rc1 {[%clk 0:01:05]}  Rb3 {[%clk 0:01:01]} 32. Kf2 {[%clk 0:01:03]}  Rab5 {[%clk 0:01:02]} 33. Rcc2 {[%clk 0:01:02]}  Rd3 {[%clk 0:01:02]} 34. Re2 {[%clk 0:00:57]}  Rbb3 {[%clk 0:01:02]} 35. Rcd2 {[%clk 0:00:49]}  g5 {[%clk 0:00:59]} 36. g4 {[%clk 0:00:48]}  h6 {[%clk 0:00:58]} 37. Rc2 {[%clk 0:00:47]}  Rb7 {[%clk 0:00:55]} 38. Rc1 {[%clk 0:00:43]}  Rf7+ {[%clk 0:00:48]} 39. Kg2 {[%clk 0:00:44]}  Rf3 {[%clk 0:00:49]} 40. Rce1 {[%clk 0:00:43]}  Kd6 {[%clk 0:00:49]} 41. Kg1 {[%clk 0:00:35]}  Kc5 {[%clk 0:00:49]} 42. Kg2 {[%clk 0:00:35]}  Kb5 {[%clk 0:00:50]} 43. Kg1 {[%clk 0:00:26]}  Ka4 {[%clk 0:00:50]} 44. Kg2 {[%clk 0:00:26]}  Kb3 {[%clk 0:00:51]} 45. Kg1 {[%clk 0:00:25]}  c3 {[%clk 0:00:43]} 46. bxc3 {[%clk 0:00:25]}  Rxc3 {[%clk 0:00:44]} 47. Rb1+ {[%clk 0:00:20]}  Kc4 {[%clk 0:00:43]} 48. Rd1 {[%clk 0:00:17]}  Rfxe3 {[%clk 0:00:41]} 49. Rxe3 {[%clk 0:00:16]}  Rxe3 {[%clk 0:00:42]} 50. Rc1+ {[%clk 0:00:16]}  Kd4 {[%clk 0:00:39]} 51. a4 {[%clk 0:00:15]}  Ra3 {[%clk 0:00:38]} 52. Rc6 {[%clk 0:00:15]}  Ke3 {[%clk 0:00:35]} 53. Kg2 {[%clk 0:00:13]}  d4 {[%clk 0:00:35]} 54. Rxh6 {[%clk 0:00:13]}  d3 {[%clk 0:00:35]} 55. Rd6 {[%clk 0:00:13]}  Ke2 {[%clk 0:00:35]} 56. h4 {[%clk 0:00:13]}  gxh4 {[%clk 0:00:36]} 57. g5 {[%clk 0:00:12]}  Rxa4 {[%clk 0:00:35]} 58. g6 {[%clk 0:00:09]}  e3 {[%clk 0:00:35]} 59. Kh3 {[%clk 0:00:05]}  Ra7 {[%clk 0:00:34]} 60. Kxh4 {[%clk 0:00:05]}  d2 {[%clk 0:00:34]} 61. Kg5 {[%clk 0:00:05]}  Ke1 {[%clk 0:00:32]} 62. Kh6 {[%clk 0:00:04]}  d1=Q {[%clk 0:00:32]} 63. Rxd1+ {[%clk 0:00:02]}  Kxd1 {[%clk 0:00:33]} 64. g7 {[%clk 0:00:03]}  Rxg7 {[%clk 0:00:32]} 65. Kxg7 {[%clk 0:00:01]}  e2 {[%clk 0:00:32]} 0-1


[Site "https://www.chess.com"]